bitfinex-derivatives/quotes_ETHF0:USTF0_20210110
["timestamp","ask_amount","ask_price","bid_price","bid_amount"]
[1610321840996,4.00959,1267.7,1266.7,1.7675]
[1610321842899,4.00959,1266.8,1266.7,5.77709]
[1610321844000,2.0857,1268.1,1266.7,5.77709]
[1610321844801,4.00959,1267.4,1267.1,4.00959]
[1610321846903,4.00959,1267.4,1267.3,5.61219]
[1610321850105,4.00959,1267.4,1267.3,1.6026]
[1610321852206,4.00959,1267.4,1267.1,57.814]
[1610321852908,4.00959,1267.2,1267.1,57.814]
[1610321855809,2.2922,1268.5,1267.1,57.814]
[1610321856010,5.5037,1268.8,1267.1,59.4336]
[1610321856812,4.00959,1267.3,1267.1,63.44319]
[1610321860818,4.00959,1267.5,1267.1,63.44319]
[1610321862819,4.00959,1267.3,1267.1,63.44319]
[1610321863019,4.00959,1267.3,1267.1,59.4336]
[1610321865122,4.00959,1267.3,1267.1,57.814]
[1610321865721,4.00959,1267.3,1265.8,2.4053]
[1610321865922,4.00959,1267.3,1265.4,5.0382]
[1610321866923,2.286,1267.5,1265.7,4.00959]
[1610321867122,2.286,1267.5,1265.7,5.80159]
[1610321868532,2.286,1267.5,1265.8,1.21078671]
[1610321868727,2.0417,1267.8,1265.8,1.21078671]
[1610321868929,4.00959,1266.7,1266.5,4.00959]
[1610321869326,2.0417,1267.8,1266.5,4.00959]
[1610321869527,2.0417,1267.8,1266.5,5.63099]
[1610321870130,5.6534,1268.0,1266.5,5.63099]
[1610321870828,4.00959,1267.0,1266.7,4.00959]
[1610321871330,5.6534,1268.0,1266.7,4.00959]
[1610321871530,2.0217,1268.1,1266.7,4.00959]
[1610321871730,2.2476,1268.4,1266.7,4.00959]
[1610321871930,30.0,1269.0,1266.7,4.00959]
[1610321872330,32.1166,1269.0,1266.7,4.00959]
[1610321872933,7.81454436,1269.0,1267.2,4.00959]
[1610321873231,2.4861,1268.5,1267.2,5.67829]
[1610321874933,2.4861,1268.5,1267.8,4.00959]
[1610321875834,2.1166,1269.0,1267.8,4.00959]
[1610321876833,2.1166,1269.0,1268.5,4.00959]
[1610321877034,5.4229,1269.8,1268.5,6.25879]
[1610321878234,5.69592135,1269.7,1268.5,6.25879]
[1610321878835,4.00959,1268.6,1268.5,6.25879]
[1610321879835,5.4229,1269.8,1268.5,6.25879]
[1610321880935,5.4229,1269.8,1268.5,2.2492]
[1610321881136,5.4229,1269.8,1269.1,2.4612]
[1610321881536,1.5306,1270.1,1269.1,2.4612]
[1610321882536,5.69540783,1270.0,1269.1,2.4612]
[1610321882837,5.69540783,1270.0,1269.2,4.00959]
[1610321884941,4.00959,1269.3,1269.2,4.00959]
[1610321892045,4.00959,1269.3,1269.1,2.4612]
[1610321892447,4.00959,1269.3,1269.0,49.012]
[1610321892847,4.00959,1269.1,1269.0,49.012]
[1610321896749,9.70638102,1269.1,1269.0,49.012]
[1610321896951,9.70638102,1269.1,1268.2,63.9742]
[1610321897350,39.70638102,1269.1,1268.2,63.9742]
[1610321898052,5.69748792,1269.0,1268.2,63.9742]
[1610321898251,30.0,1268.9,1268.2,63.9742]
[1610321898650,32.0484,1268.9,1268.2,63.9742]
[1610321899054,35.93999,1268.3,1268.2,63.9742]
[1610321900054,5.93999,1268.3,1268.2,63.9742]
[1610321900256,35.93999,1268.3,1268.2,63.9742]
[1610321901357,41.63952443,1268.3,1268.2,63.9742]
[1610321901558,48.3694,1268.2,1266.7,56.0547]
[1610321901757,30.0,1268.1,1266.7,56.0547]
[1610321902660,5.69908297,1268.0,1266.7,56.0547]
[1610321902859,30.0,1267.9,1266.7,56.0547]
[1610321903058,4.00959,1266.8,1266.7,56.0547]
[1610321903859,6.08609,1266.8,1266.7,56.0547]
[1610321904359,2.0765,1266.8,1266.7,56.0547]
[1610321904761,1.5926,1267.7,1265.3,3.405]
[1610321904961,1.5926,1267.7,1266.5,4.00959]
[1610321905361,1.5926,1267.7,1266.5,5.66849]
[1610321905961,5.7013,1267.8,1266.5,5.66849]
[1610321906361,5.7013,1267.8,1266.5,14.19229]
[1610321907069,5.7013,1267.8,1266.5,10.1827]
[1610321909067,4.00959,1267.1,1266.5,10.1827]
[1610321911068,4.00959,1266.6,1266.5,10.1827]
[1610321911869,2.0803,1267.3,1266.5,10.1827]
[1610321912471,7.5656,1267.8,1266.5,10.1827]
[1610321913070,7.5656,1267.8,1266.8,4.00959]
[1610321913270,7.5656,1267.8,1266.8,6.42019]
[1610321913671,7.5656,1267.8,1266.8,2.4106]
[1610321915070,4.00959,1266.9,1266.8,2.4106]
[1610321916172,7.5656,1267.8,1266.8,2.4106]
[1610321917072,5.7013,1267.8,1267.7,4.00959]
[1610321920473,4.00959,1268.2,1267.7,4.00959]
[1610321920672,30.0,1270.3,1267.7,4.00959]
[1610321921077,30.0,1270.3,1267.6,2.2765]
[1610321921078,4.00959,1268.9,1268.7,4.00959]
[1610321921275,1.9344,1270.1,1268.7,4.00959]
[1610321921476,1.9344,1270.1,1268.7,6.24849]
[1610321922076,1.9344,1270.1,1268.7,2.2389]
[1610321922477,30.0,1269.9,1268.7,2.2389]
[1610321922676,5.69432088,1270.0,1268.7,2.2389]
[1610321923079,4.00959,1268.8,1268.7,2.2389]
[1610321923877,1.9344,1270.1,1268.7,2.2389]
[1610321925080,4.00959,1268.8,1268.7,2.2389]
[1610321926380,4.00959,1268.8,1268.5,4.00959]
[1610321926581,2.4365,1269.8,1268.5,4.00959]
[1610321927083,4.00959,1268.6,1268.5,2.2805]
[1610321929186,2.4365,1269.8,1268.5,2.2805]
[1610321930789,1.9344,1270.1,1268.5,2.2805]
[1610321930990,5.908,1270.5,1268.5,2.2805]
[1610321931190,5.908,1270.5,1269.1,4.00959]
[1610321931389,5.908,1270.5,1268.5,2.2805]
[1610321931589,7.7843,1270.5,1268.5,2.2805]
[1610321931790,37.7843,1270.5,1268.5,2.2805]
[1610321932191,5.64153268,1270.4,1267.6,2.2765]
[1610321932390,5.64153268,1270.4,1267.1,1.931]
[1610321932792,5.64153268,1270.4,1266.9,35.4588]
[1610321933090,5.64153268,1270.4,1269.1,4.00959]
[1610321934193,5.64153268,1270.4,1268.7,1.6962]
[1610321934592,8.3712,1270.3,1268.7,1.6962]
[1610321935191,8.3712,1270.3,1269.2,4.00959]
[1610321936592,5.64087362,1270.2,1269.2,4.00959]
[1610321936992,7.20377362,1270.2,1269.2,4.00959]
[1610321937792,5.64039536,1270.1,1269.2,4.00959]
[1610321939193,5.64039536,1270.1,1269.6,4.00959]
[1610321939394,8.3712,1270.3,1269.6,6.03819]
[1610321940796,5.63972119,1270.2,1269.6,6.03819]
[1610321941194,5.63972119,1270.2,1270.1,4.00959]
[1610321941699,5.63972119,1270.2,1270.0,1.8046]
[1610321942299,8.3712,1270.3,1270.0,1.8046]
[1610321943199,4.00959,1270.1,1269.6,2.0286]
[1610321944598,4.00959,1270.1,1269.5,63.5]
[1610321945196,4.00959,1270.1,1270.0,4.00959]
[1610321945998,1.6961,1270.8,1270.0,4.00959]
[1610321946198,2.3151,1271.1,1270.0,4.00959]
[1610321946599,30.0,1271.5,1270.0,4.00959]
[1610321947099,4.00959,1270.1,1270.0,4.00959]
[1610321948301,4.00959,1270.1,1269.5,63.5]
[1610321949100,4.00959,1269.6,1269.5,63.5]
[1610321949301,5.9705,1271.6,1269.5,63.5]
[1610321949302,35.9705,1271.6,1269.5,63.5]
[1610321949503,5.9705,1271.6,1269.5,63.5]
[1610321949703,30.0,1271.9,1269.5,63.5]
[1610321949902,30.0,1271.9,1269.5,65.4667]
[1610321950101,30.0,1271.6,1269.5,65.4667]
[1610321950302,32.4567,1271.6,1269.5,65.4667]
[1610321950502,2.4567,1271.6,1269.5,65.4667]
[1610321950905,5.63831908,1271.5,1269.5,65.4667]
[1610321951103,4.00959,1270.8,1270.7,4.00959]
[1610321952305,2.1783,1272.0,1270.7,4.00959]
[1610321952705,2.1783,1272.0,1270.7,6.15319]
[1610321953105,5.8791,1272.8,1271.5,4.00959]
[1610321953506,5.8791,1272.8,1271.5,5.78879]
[1610321954705,5.8791,1272.8,1271.5,1.7792]
[1610321954906,5.63627787,1272.7,1271.5,1.7792]
[1610321955107,4.00959,1271.6,1271.5,1.7792]
[1610321958410,4.00959,1271.6,1270.7,2.1436]
[1610321958610,4.00959,1271.6,1269.5,1.9667]
[1610321958809,4.00959,1271.6,1268.7,1.6962]
[1610321959010,4.00959,1271.6,1268.4,0.23689304]
[1610321959210,2.2384,1272.4,1271.3,4.00959]
[1610321959411,2.2384,1272.4,1271.3,6.43469]
[1610321960912,1.6231,1272.7,1271.3,6.43469]
[1610321961114,1.6231,1272.7,1271.7,4.00959]
[1610321961313,5.8791,1272.8,1271.7,4.00959]
[1610321961513,5.8791,1272.8,1271.7,6.13579]
[1610321962115,5.63503637,1272.7,1271.7,6.13579]
[1610321963120,4.00959,1271.8,1271.7,2.1262]
[1610321964622,5.63503637,1272.7,1271.7,2.1262]
[1610321964822,5.8791,1272.8,1271.7,2.1262]
[1610321965223,2.2226,1273.1,1272.5,4.00959]
[1610321966225,5.63427898,1273.0,1272.5,4.00959]
[1610321966623,5.63427898,1273.0,1272.1,2.2969]
[1610321967224,4.00959,1272.3,1272.1,6.30649]
[1610321968625,4.00959,1272.3,1272.1,2.2969]
[1610321970431,4.00959,1272.3,1271.7,2.1262]
[1610321970831,4.00959,1272.3,1271.5,46.1927]
[1610321971032,6.10709,1272.3,1271.5,46.1927]
[1610321971235,4.00959,1271.6,1271.5,46.1927]
[1610321972234,4.00959,1271.6,1271.3,2.4251]
[1610321972634,4.00959,1271.6,1271.0,4.00959]
[1610321973135,4.00959,1271.8,1271.5,4.00959]
[1610321973537,2.4807,1272.8,1271.5,4.00959]
[1610321973735,2.4807,1272.8,1271.5,5.74519]
[1610321974536,5.63488296,1272.7,1271.5,5.74519]
[1610321975337,5.63488296,1272.7,1271.9,5.78229]
[1610321975737,5.63488296,1272.7,1271.9,1.7727]
[1610321977341,4.00959,1272.3,1272.0,4.00959]
[1610321978439,5.63488296,1272.7,1272.0,4.00959]
[1610321979042,58.0188,1273.4,1272.0,4.00959]
[1610321979243,4.00959,1272.5,1272.4,4.00959]
[1610321980145,58.0188,1273.4,1272.4,4.00959]
[1610321981247,4.00959,1272.5,1272.4,4.00959]
[1610321981447,58.0188,1273.4,1272.4,4.00959]
[1610321981650,2.3834,1273.4,1272.4,4.00959]
[1610321981850,5.63365852,1273.3,1272.4,4.00959]
[1610321983253,4.00959,1272.7,1272.4,4.00959]
[1610321983451,5.63365852,1273.3,1272.4,4.00959]
[1610321985256,4.00959,1273.0,1272.4,4.00959]
[1610321986957,5.63365852,1273.3,1272.4,4.00959]
[1610321987156,2.3834,1273.4,1272.4,4.00959]
[1610321987359,4.00959,1273.2,1272.6,4.00959]
[1610321989459,4.00959,1273.2,1272.9,4.00959]
[1610321990762,4.00959,1273.2,1271.9,1.7727]
[1610321990964,4.00959,1273.2,1272.1,46.4744]
[1610321991364,4.00959,1272.9,1272.8,4.00959]
[1610321991964,1.8785,1273.5,1272.8,4.00959]
[1610321992665,57.477,1274.3,1272.8,4.00959]
[1610321993264,57.477,1274.3,1272.6,2.2518]
[1610321993465,4.00959,1272.9,1272.6,2.2518]
[1610321993666,4.00959,1272.9,1272.1,48.7999]
[1610321994667,4.00959,1272.9,1272.1,2.3255]
[1610321995267,4.00959,1272.2,1272.1,2.3255]
[1610321996466,4.00959,1272.2,1271.5,1.7356]
[1610321996668,4.00959,1272.2,1271.1,4.00959]
[1610321997367,4.00959,1272.2,1271.0,1.8772]
[1610321997368,4.00959,1272.2,1271.9,4.00959]
[1610321997568,4.00959,1272.2,1271.9,6.37329]
[1610321997969,2.1237,1273.0,1271.9,6.37329]
[1610321999069,2.1598,1273.3,1271.9,6.37329]
[1610321999269,1.8664,1273.6,1271.9,6.37329]
[1610321999472,4.00959,1272.8,1272.6,4.00959]
[1610322000172,2.2041,1273.3,1272.6,4.00959]
[1610322001376,2.2041,1273.3,1272.9,4.00959]
[1610322002976,1.8664,1273.6,1272.9,4.00959]
[1610322003176,5.5052,1274.1,1272.9,4.00959]
[1610322003376,4.00959,1273.2,1272.9,4.00959]
[1610322004376,1.5543,1273.6,1272.9,4.00959]
[1610322005477,1.5543,1273.6,1273.2,4.00959]
[1610322007380,1.5543,1273.6,1272.4,1.7589]
[1610322007381,5.56389,1273.6,1273.5,4.00959]
[1610322007678,1.5543,1273.6,1273.5,4.00959]
[1610322008078,53.9109,1274.8,1273.5,4.00959]
[1610322009378,5.5279111,1274.7,1273.7,4.00959]
[1610322009779,7.6072111,1274.7,1273.7,4.00959]
[1610322010578,7.6072111,1274.7,1273.3,2.1143]
[1610322010778,2.0793,1274.7,1273.3,2.1143]
[1610322011378,4.00959,1273.4,1273.3,2.1143]
[1610322011978,2.2334,1274.3,1273.3,2.1143]
[1610322013383,2.2334,1274.3,1273.4,4.00959]
[1610322013782,2.2334,1274.3,1273.3,2.1143]
[1610322014184,2.2334,1274.3,1273.0,1.5996]
[1610322014384,2.2334,1274.3,1272.4,1.7589]
[1610322014584,2.2334,1274.3,1271.1,5.9385]
[1610322015185,32.2334,1274.3,1271.1,5.9385]
[1610322015385,4.00959,1272.4,1271.7,4.00959]
[1610322016389,4.00959,1272.4,1270.0,10.216]
[1610322017390,4.00959,1271.5,1271.1,4.00959]
[1610322018591,4.00959,1271.5,1270.1,1.20550025]
[1610322019192,4.00959,1271.5,1269.9,49.7205]
[1610322019393,4.00959,1271.1,1270.8,4.00959]
[1610322020697,1.6014,1271.9,1270.8,4.00959]
[1610322020896,1.6014,1271.9,1270.8,5.59709]
[1610322021097,1.6261,1272.2,1270.8,5.59709]
[1610322021498,1.6261,1272.2,1271.5,4.00959]
[1610322021900,64.9227,1272.3,1271.5,4.00959]
[1610322023600,64.9227,1272.3,1272.2,4.00959]
[1610322023800,64.9227,1272.3,1272.2,5.78429]
[1610322024602,65.5569,1273.2,1272.2,5.78429]
[1610322024801,5.9462,1274.2,1272.2,5.78429]
[1610322025001,30.0,1274.9,1272.2,5.78429]
[1610322025404,5.8449,1275.0,1272.2,5.78429]
[1610322025603,4.00959,1273.9,1273.7,4.00959]
[1610322026204,4.00959,1273.9,1272.2,1.7747]
[1610322027505,4.00959,1273.5,1273.2,4.00959]
[1610322028206,4.00959,1273.5,1272.2,1.7747]
[1610322028604,4.00959,1273.5,1272.6,46.5911]
[1610322028805,4.00959,1273.5,1272.6,48.2236]
[1610322029206,34.00959,1273.5,1272.6,48.2236]
[1610322029607,4.00959,1272.7,1272.6,48.2236]
[1610322030107,4.00959,1272.7,1272.6,46.5911]
[1610322031109,2.2898,1273.3,1272.6,46.5911]
[1610322031509,2.2898,1273.3,1272.9,4.00959]
[1610322032713,31.7334,1274.3,1272.6,48.5249]
[1610322033614,4.00959,1273.1,1272.6,48.5249]
[1610322035518,4.00959,1272.9,1272.6,48.5249]
[1610322036119,4.00959,1272.9,1272.6,46.5911]
[1610322037520,4.00959,1272.7,1272.6,46.5911]
[1610322037922,4.00959,1272.7,1272.3,2.272]
[1610322038121,4.00959,1272.7,1271.4,2.2254]
[1610322038524,4.00959,1272.7,1270.0,34.9876]
[1610322039123,4.00959,1272.7,1270.4,33.405]
[1610322039527,1.8555,1273.3,1272.5,4.00959]
[1610322041025,1.8555,1273.3,1272.5,5.99439]
[1610322041427,35.6566,1273.4,1272.5,5.99439]
[1610322041627,4.00959,1272.6,1272.5,1.9848]
[1610322042026,4.00959,1272.6,1272.2,1.5363]
[1610322043533,4.00959,1272.6,1272.3,4.00959]
[1610322045634,4.00959,1272.4,1272.3,4.00959]
[1610322046035,4.00959,1272.4,1272.2,1.5363]
[1610322046235,4.00959,1272.4,1270.5,5.8428]
[1610322046435,4.00959,1272.4,1270.4,3.405]
[1610322047235,4.00959,1272.4,1271.7,62.707]
[1610322047435,4.00959,1272.4,1270.6,124.1267]
[1610322047636,4.00959,1272.2,1272.0,4.00959]
[1610322048438,2.0312,1273.0,1272.0,4.00959]
[1610322048839,2.0312,1273.0,1272.0,6.31359]
[1610322049238,5.6566,1273.4,1272.0,6.31359]
[1610322049638,4.00959,1273.0,1272.8,4.00959]
[1610322050239,4.00959,1273.0,1272.0,2.304]
[1610322050943,34.00959,1273.0,1272.0,2.304]
[1610322051340,34.00959,1273.0,1272.1,1.20498449]
[1610322051544,4.00959,1272.2,1272.1,1.20498449]
[1610322052543,4.00959,1272.2,1272.0,2.304]
[1610322053546,4.00959,1272.2,1272.1,4.00959]
[1610322054146,4.00959,1272.2,1272.0,2.304]
[1610322054646,4.00959,1272.2,1271.5,65.7295]
[1610322055047,4.00959,1272.2,1271.5,67.2754]
[1610322055649,4.00959,1272.2,1272.0,4.00959]
[1610322056251,2.2195,1273.0,1272.0,4.00959]
[1610322056451,30.0,1272.9,1272.0,4.00959]
[1610322057755,4.00959,1272.4,1272.3,4.00959]
[1610322057955,4.00959,1272.4,1271.9,2.1805]
[1610322059559,4.00959,1272.4,1272.2,4.00959]
[1610322060659,4.00959,1272.4,1272.0,1.20504247]
[1610322061162,4.00959,1272.4,1271.9,2.1805]
[1610322061360,4.00959,1272.4,1271.5,67.2754]
[1610322061762,30.0,1272.9,1272.2,4.00959]
[1610322062460,30.0,1272.9,1272.1,1.7016]
[1610322063262,30.0,1272.9,1271.5,67.2754]
[1610322063665,4.00959,1271.6,1271.5,67.2754]
[1610322065464,4.00959,1271.6,1271.5,68.4809807]
[1610322066065,4.00959,1271.6,1271.5,2.7514807]
[1610322066466,34.00959,1271.6,1271.5,2.7514807]
[1610322066666,34.00959,1271.6,1271.5,1.2055807]
[1610322066865,4.00959,1271.6,1271.5,1.2055807]
[1610322067067,34.00959,1271.6,1271.5,1.2055807]
[1610322068268,34.00959,1271.6,1270.9,48.4016]
[1610322068670,4.00959,1271.6,1270.9,48.4016]
[1610322068871,34.00959,1271.6,1270.9,48.4016]
[1610322069772,4.00959,1271.0,1270.9,48.4016]
[1610322069972,5.82559,1271.0,1270.9,48.4016]
[1610322071174,4.00959,1271.0,1270.9,48.4016]
[1610322071574,4.00959,1271.4,1270.9,52.41119]
[1610322073376,1.7335,1271.8,1270.9,52.41119]
[1610322073576,5.5647,1272.4,1270.9,52.41119]
[1610322073776,4.00959,1271.7,1271.4,4.00959]
[1610322074176,1.6847,1272.1,1271.4,4.00959]
[1610322075178,2.3475,1272.6,1271.4,4.00959]
[1610322075377,65.2106,1272.2,1271.4,4.00959]
[1610322075578,2.3475,1272.6,1271.4,4.00959]
[1610322075777,4.00959,1272.6,1272.1,4.00959]
[1610322076983,30.0,1273.4,1272.1,4.00959]
[1610322077179,5.7343,1274.0,1272.1,4.00959]
[1610322077380,30.0,1273.9,1272.1,4.00959]
[1610322077580,31.6261,1273.9,1272.1,4.00959]
[1610322077780,31.6261,1273.9,1272.5,4.00959]
[1610322078080,31.6261,1273.9,1272.0,2.3924]
[1610322078281,30.0,1273.7,1272.0,2.3924]
[1610322078882,30.0,1273.5,1272.0,2.3924]
[1610322079683,4.00959,1272.1,1272.0,2.3924]
[1610322080485,1.7682,1272.9,1272.0,2.3924]
[1610322081083,1.7682,1272.9,1271.8,4.00959]
[1610322081783,1.7682,1272.9,1272.4,4.00959]
[1610322081983,30.0,1273.5,1272.4,4.00959]
[1610322082284,30.0,1273.5,1272.2,1.8892]
[1610322083787,4.00959,1272.3,1272.2,1.8892]
[1610322084191,4.00959,1272.3,1271.2,2.4498]
[1610322084387,4.00959,1272.3,1270.8,1.6553]
[1610322084587,4.00959,1272.3,1270.1,3.405]
[1610322085188,4.00959,1272.3,1270.9,1.20541514]
[1610322085389,4.00959,1272.3,1270.9,3.26651514]
[1610322085788,4.00959,1271.6,1271.4,4.00959]
[1610322087293,35.7616,1272.8,1271.4,4.00959]
[1610322087492,35.7616,1272.8,1271.4,2.0587]
[1610322087694,4.00959,1271.5,1271.4,2.0587]
[1610322090096,4.00959,1271.5,1270.9,2.0611]
[1610322090397,4.00959,1271.5,1269.3,3.405]
[1610322090996,4.00959,1271.5,1271.0,1.20584806]
[1610322091799,4.00959,1271.1,1271.0,1.20584806]
[1610322092399,4.00959,1271.1,1270.7,1.20584286]
[1610322093701,4.00959,1270.8,1270.7,1.20584286]
[1610322101615,1.8742,1271.7,1270.7,1.20584286]
[1610322101815,1.9797,1272.0,1271.0,4.00959]
[1610322102215,5.7174,1272.1,1271.0,4.00959]
[1610322102817,2.2796,1272.3,1271.0,4.00959]
[1610322103018,5.7343,1274.0,1271.0,4.00959]
[1610322103217,35.7285,1273.9,1271.0,4.00959]
[1610322103617,44.6537,1273.8,1271.3,63.3943]
[1610322103817,4.00959,1272.1,1272.0,4.00959]
[1610322104920,4.00959,1272.1,1271.3,63.3943]
[1610322105720,2.2717,1272.8,1271.3,63.3943]
[1610322105721,4.00959,1271.4,1271.3,63.3943]
[1610322106522,4.00959,1271.4,1271.3,64.59985455]
[1610322107822,4.00959,1271.4,1271.3,63.3943]
[1610322111523,2.3325,1271.7,1271.3,63.3943]
[1610322111724,4.00959,1271.5,1271.4,4.00959]
[1610322112324,1.6003,1272.0,1271.4,4.00959]
[1610322112725,5.9506,1272.4,1271.4,4.00959]
[1610322113726,4.00959,1271.6,1271.4,4.00959]
[1610322114727,5.9506,1272.4,1271.4,4.00959]
[1610322114928,52.8471,1272.5,1271.4,4.00959]
[1610322115727,52.8471,1272.5,1271.6,4.00959]
[1610322115728,4.00959,1271.9,1271.6,4.00959]
[1610322115928,4.00959,1271.9,1271.5,1.20534728]
[1610322117734,4.00959,1271.6,1271.3,1.20566098]
[1610322119833,4.00959,1271.4,1271.3,1.20566098]
[1610322120233,4.00959,1271.4,1271.2,1.702]
[1610322120534,4.00959,1271.4,1270.9,63.1444]
[1610322121833,32.1517,1272.2,1271.1,4.00959]
[1610322123336,32.1517,1272.2,1271.2,1.20554277]
[1610322123938,4.00959,1271.3,1271.2,3.46334277]
[1610322124942,34.00959,1271.3,1271.2,3.46334277]
[1610322125540,34.00959,1271.3,1271.2,1.20554277]
[1610322125940,34.00959,1271.3,1270.7,61.9966]
[1610322126742,30.0,1271.2,1270.7,61.9966]
[1610322126940,4.00959,1271.3,1270.7,61.9966]
[1610322127341,4.00959,1271.3,1270.8,1.20601056]
[1610322127942,30.0,1272.1,1271.1,4.00959]
[1610322128941,30.0,1272.1,1271.2,1.20573542]
[1610322129842,4.00959,1271.3,1271.2,1.20573542]
[1610322130142,4.00959,1271.3,1271.0,1.20570033]
[1610322131943,4.00959,1271.1,1271.0,1.20570033]
[1610322135147,2.371,1271.9,1271.0,1.20570033]
[1610322135750,30.0,1272.1,1271.0,1.20570033]
[1610322135947,4.00959,1271.2,1271.1,4.00959]
[1610322136247,4.00959,1271.2,1271.0,1.20570033]
[1610322137848,37.8125,1272.2,1271.1,4.00959]
[1610322137849,4.00959,1271.4,1271.1,4.00959]
[1610322138848,4.00959,1271.4,1271.2,1.20516694]
[1610322139148,4.00959,1271.4,1271.2,3.21926694]
[1610322140248,4.00959,1271.4,1271.3,1.20521309]
[1610322144652,4.00959,1271.4,1271.0,1.205569]
[1610322146057,4.00959,1271.1,1271.0,1.205569]
[1610322150657,64.0065,1271.9,1271.0,1.205569]
[1610322151958,4.00959,1271.6,1271.2,4.00959]
[1610322153260,4.00959,1271.6,1271.3,1.20511777]
[1610322154061,4.00959,1271.4,1271.3,1.20511777]
[1610322155362,34.00959,1271.4,1271.3,1.20511777]
[1610322156364,4.00959,1271.4,1271.3,1.20511777]
[1610322157264,4.00959,1271.4,1271.0,1.20563261]
[1610322157865,34.00959,1271.4,1271.0,1.20563261]
[1610322158065,4.00959,1271.1,1271.0,1.20563261]
[1610322159067,34.00959,1271.1,1271.0,1.20563261]
[1610322162875,4.00959,1271.1,1271.0,1.20563261]
[1610322163076,4.00959,1271.1,1270.9,1.9107]
[1610322163477,4.00959,1271.1,1270.2,4.00959]
[1610322164078,30.0,1271.3,1270.6,4.00959]
[1610322164579,30.0,1271.3,1270.7,1.2056842]
[1610322165979,4.00959,1270.8,1270.7,1.2056842]
[1610322178192,58.8357,1271.0,1270.7,5.2152742]
[1610322178392,58.8357,1271.0,1270.7,1.2056842]
[1610322178993,30.0,1271.6,1270.7,1.2056842]
[1610322179194,30.0,1271.5,1270.7,1.2056842]
[1610322180095,4.00959,1270.8,1270.7,1.18523011]
[1610322180596,4.00959,1270.8,1270.6,2.2336]
[1610322180994,4.00959,1270.8,1270.4,4.00959]
[1610322182197,4.00959,1270.8,1270.6,4.00959]
[1610322182598,4.00959,1270.8,1270.6,2.4699]
[1610322183399,4.00959,1270.8,1270.7,1.2057128]
[1610322185601,4.00959,1270.8,1270.6,6.47949]
[1610322186200,4.00959,1270.8,1270.7,1.20567393]
[1610322189306,34.00959,1270.8,1270.7,1.20567393]
[1610322190205,34.00959,1270.8,1270.4,1.20615871]
[1610322190406,36.49129,1270.8,1270.4,1.20615871]
[1610322191608,36.49129,1270.8,1270.0,1.20621001]
[1610322192209,4.00959,1270.1,1270.0,1.20621001]
[1610322192409,34.00959,1270.1,1270.0,1.20621001]
[1610322193309,4.00959,1270.1,1270.0,1.20621001]
[1610322194410,4.00959,1270.1,1269.9,57.3209]
[1610322197212,4.00959,1270.1,1270.0,1.20643027]
[1610322198414,4.00959,1270.1,1269.3,30.47852027]
[1610322199215,4.00959,1270.1,1269.3,26.46893027]
[1610322199815,4.00959,1270.1,1269.4,1.20645056]
[1610322200219,4.00959,1269.5,1269.4,1.20645056]
[1610322214036,61.1957,1269.8,1269.4,1.20645056]
[1610322214338,4.00959,1269.7,1269.4,5.21604056]
[1610322214734,61.1957,1269.8,1269.4,5.21604056]
[1610322215535,61.1957,1269.8,1269.5,1.20639243]
[1610322216335,61.1957,1269.8,1269.7,4.00959]
[1610322216535,4.00959,1270.6,1269.7,4.00959]
[1610322216736,4.00959,1270.6,1269.7,5.57159]
[1610322218135,4.00959,1270.6,1269.8,1.20593468]
[1610322218336,30.0,1271.7,1270.1,4.00959]
[1610322218536,30.0,1271.7,1269.8,1.20593468]
[1610322220337,30.0,1271.7,1269.9,4.00959]
[1610322222441,4.00959,1270.4,1270.3,4.00959]
[1610322223541,2.1584,1271.2,1270.3,4.00959]
[1610322224141,55.2701,1271.8,1270.3,5.21539505]
[1610322224342,49.2997,1271.8,1270.3,5.21539505]
[1610322224542,49.2997,1271.8,1270.9,4.00959]
[1610322224945,79.2997,1271.8,1270.9,4.00959]
[1610322225141,79.2997,1271.8,1270.7,1.8752]
[1610322225942,30.0,1271.8,1270.7,1.8752]
[1610322226542,4.00959,1270.8,1270.7,1.8752]
[1610322227343,4.00959,1270.8,1270.1,1.731]
[1610322228445,1.682,1271.5,1270.2,1.20590171]
[1610322230445,4.00959,1270.3,1270.2,1.20590171]
[1610322233046,5.86779,1270.3,1269.8,1.20638903]
[1610322234348,5.86779,1270.3,1269.4,1.20635316]
[1610322234549,4.00959,1269.7,1269.4,5.21594316]
[1610322235650,4.00959,1269.7,1269.5,1.20637354]
[1610322236553,4.00959,1269.7,1269.6,4.00959]
[1610322236754,48.4673,1270.3,1269.6,4.00959]
[1610322238459,4.00959,1269.8,1269.7,1.20633542]
[1610322239259,48.4673,1270.3,1269.7,3.11763542]
[1610322240560,48.4673,1270.3,1270.1,4.00959]
[1610322241864,48.4673,1270.3,1270.0,1.7868]
[1610322242465,48.4673,1270.3,1270.2,1.20610987]
[1610322243365,1.8582,1270.3,1270.2,1.20610987]
[1610322243765,57.1626,1270.5,1269.8,1.20617518]
[1610322244466,57.1626,1270.5,1270.2,4.00959]
[1610322244866,2.0966,1270.7,1270.2,4.00959]
[1610322245568,30.0,1271.3,1270.2,4.00959]
[1610322246468,4.00959,1270.3,1270.2,4.00959]
[1610322247869,2.1936,1271.0,1270.2,4.00959]
[1610322248071,2.1936,1271.0,1270.2,5.21555032]
[1610322248468,2.1936,1271.0,1270.6,4.00959]
[1610322248669,2.1936,1271.0,1270.2,1.20596032]
[1610322249669,2.1936,1271.0,1270.1,1.20591344]